[Event "*** Titled Tuesday Blitz"]
[Site "Chess.com"]
[Date "2020.11.24"]
[Round "3"]
[White "SaqoChess_Twitch"]
[Black "Rainmond"]
[Result "0-1"]
[WhiteElo "2503"]
[BlackElo "2775"]
[TimeControl "180+1"]
[EndTime "10:45:03 PST"]
[Termination "Rainmond won by resignation"]

1. d4 {[%clk 0:03:00]} 1... g6 {[%clk 0:02:58.6]} 2. c4 {[%clk 0:03:00.1]} 2...
Bg7 {[%clk 0:02:58.3]} 3. Nc3 {[%clk 0:03:00.3]} 3... e6 {[%clk 0:02:58.3]} 4.
Nf3 {[%clk 0:03:00.7]} 4... Ne7 {[%clk 0:02:57.8]} 5. h3 {[%clk 0:03:01.1]} 5...
d5 {[%clk 0:02:56.6]} 6. e3 {[%clk 0:02:59.3]} 6... Nbc6 {[%clk 0:02:54.4]} 7.
Be2 {[%clk 0:02:59.7]} 7... O-O {[%clk 0:02:52.9]} 8. O-O {[%clk 0:02:59.2]}
8... a5 {[%clk 0:02:53]} 9. b3 {[%clk 0:02:57.3]} 9... b6 {[%clk 0:02:52.4]} 10.
Bb2 {[%clk 0:02:56.5]} 10... Bb7 {[%clk 0:02:51.3]} 11. a3 {[%clk 0:02:56.6]}
11... h6 {[%clk 0:02:50.5]} 12. c5 {[%clk 0:02:46.8]} 12... bxc5 {[%clk
0:02:46.4]} 13. dxc5 {[%clk 0:02:47.7]} 13... e5 {[%clk 0:02:46]} 14. Nb5 {[%clk
0:02:43.5]} 14... g5 {[%clk 0:02:40.5]} 15. Qc2 {[%clk 0:02:28.5]} 15... Bc8
{[%clk 0:02:36.1]} 16. Bc3 {[%clk 0:02:14.7]} 16... Be6 {[%clk 0:02:22.3]} 17.
Qb2 {[%clk 0:02:13.7]} 17... Ng6 {[%clk 0:02:15.3]} 18. b4 {[%clk 0:02:07.4]}
18... Qe7 {[%clk 0:02:09.5]} 19. Rfd1 {[%clk 0:02:01.6]} 19... h5 {[%clk
0:02:06.1]} 20. Nh2 {[%clk 0:01:29.7]} 20... g4 {[%clk 0:01:37]} 21. hxg4 {[%clk
0:01:28.1]} 21... hxg4 {[%clk 0:01:36.2]} 22. Bxg4 {[%clk 0:01:27.6]} 22... f5
{[%clk 0:01:34.2]} 23. Bf3 {[%clk 0:01:24.6]} 23... Rab8 {[%clk 0:01:24.3]} 24.
Nxc7 {[%clk 0:01:13.3]} 24... Qxc7 {[%clk 0:01:20.6]} 25. Bxd5 {[%clk
0:01:13.9]} 25... Bxd5 {[%clk 0:01:13.4]} 26. Rxd5 {[%clk 0:01:14.8]} 26... axb4
{[%clk 0:00:58.2]} 27. axb4 {[%clk 0:01:14.5]} 27... Rfd8 {[%clk 0:00:58.2]} 28.
Rad1 {[%clk 0:01:11.5]} 28... Rxd5 {[%clk 0:00:53]} 29. Rxd5 {[%clk 0:01:12.4]}
29... Nce7 {[%clk 0:00:52.8]} 30. Rd6 {[%clk 0:01:09.5]} 30... Rd8 {[%clk
0:00:51.2]} 31. Qb3+ {[%clk 0:01:03.6]} 31... Kh8 {[%clk 0:00:47.3]} 32. Rxd8+
{[%clk 0:01:00.9]} 32... Qxd8 {[%clk 0:00:45.6]} 33. b5 {[%clk 0:00:58.5]} 33...
Qd5 {[%clk 0:00:39.9]} 34. Qxd5 {[%clk 0:00:41.9]} 34... Nxd5 {[%clk 0:00:40.8]}
35. b6 {[%clk 0:00:42.2]} 35... Nge7 {[%clk 0:00:38.2]} 36. Bd2 {[%clk
0:00:39.1]} 36... Nc6 {[%clk 0:00:36.9]} 37. f3 {[%clk 0:00:36.4]} 37... Bf8
{[%clk 0:00:35.9]} 38. e4 {[%clk 0:00:36.8]} 38... Bxc5+ {[%clk 0:00:34.5]} 39.
Kh1 {[%clk 0:00:37]} 39... fxe4 {[%clk 0:00:33]} 40. fxe4 {[%clk 0:00:37.9]}
40... Nf6 {[%clk 0:00:33]} 41. Nf3 {[%clk 0:00:35]} 41... Bxb6 {[%clk
0:00:30.4]} 42. Bc3 {[%clk 0:00:32.9]} 42... Ng4 {[%clk 0:00:28.6]} 43. Nh2
{[%clk 0:00:29.5]} 43... Nf2+ {[%clk 0:00:27.7]} 44. Kg1 {[%clk 0:00:29.3]}
44... Nxe4+ {[%clk 0:00:28.6]} 45. Kf1 {[%clk 0:00:28.5]} 45... Nxc3 {[%clk
0:00:28.3]} 46. Ng4 {[%clk 0:00:29.4]} 46... e4 {[%clk 0:00:27.3]} 47. Nf6
{[%clk 0:00:27.8]} 47... e3 {[%clk 0:00:27]} 48. Ng4 {[%clk 0:00:26.7]} 48...
e2+ {[%clk 0:00:27.9]} 49. Ke1 {[%clk 0:00:26.6]} 49... Nb4 {[%clk 0:00:28.1]}
50. Kd2 {[%clk 0:00:24.4]} 50... Nd3 {[%clk 0:00:27.3]} 51. Ne3 {[%clk
0:00:23.5]} 51... Bxe3+ {[%clk 0:00:26.1]} 52. Kxd3 {[%clk 0:00:24.4]} 52...
e1=Q {[%clk 0:00:24.8]} 0-1

[Event "*** Titled Tuesday Blitz"]
[Site "Chess.com"]
[Date "2020.11.24"]
[Round "3"]
[White "Zhigalko_Sergei"]
[Black "pooh2012"]
[Result "0-1"]
[WhiteElo "2885"]
[BlackElo "2476"]
[TimeControl "180+1"]
[EndTime "10:45:03 PST"]
[Termination "pooh2012 won on time"]

1. e4 {[%clk 0:03:00.9]} 1... c6 {[%clk 0:02:58.2]} 2. d4 {[%clk 0:03:01.1]}
2... d5 {[%clk 0:02:57.7]} 3. e5 {[%clk 0:03:01.6]} 3... Bf5 {[%clk 0:02:56.9]}
4. Nf3 {[%clk 0:03:01.9]} 4... e6 {[%clk 0:02:56.2]} 5. Be2 {[%clk 0:03:02.1]}
5... Nd7 {[%clk 0:02:55.7]} 6. O-O {[%clk 0:03:02]} 6... Bg6 {[%clk 0:02:56.2]}
7. Nbd2 {[%clk 0:03:02.1]} 7... Nh6 {[%clk 0:02:56.2]} 8. Nb3 {[%clk 0:02:56]}
8... Nf5 {[%clk 0:02:54.8]} 9. c3 {[%clk 0:02:55.1]} 9... Be7 {[%clk 0:02:50.8]}
10. g4 {[%clk 0:02:55.2]} 10... Nh6 {[%clk 0:02:50.1]} 11. h3 {[%clk 0:02:52.5]}
11... Ng8 {[%clk 0:02:49.6]} 12. Ne1 {[%clk 0:02:51.6]} 12... h5 {[%clk
0:02:48.5]} 13. gxh5 {[%clk 0:02:50.2]} 13... Bf5 {[%clk 0:02:48.3]} 14. Bg4
{[%clk 0:02:50.5]} 14... Nh6 {[%clk 0:02:40]} 15. Ng2 {[%clk 0:02:48.5]} 15...
Bg5 {[%clk 0:02:30.6]} 16. f4 {[%clk 0:02:41.7]} 16... Be7 {[%clk 0:02:22.2]}
17. Be3 {[%clk 0:02:41.5]} 17... g6 {[%clk 0:02:11]} 18. hxg6 {[%clk 0:02:30.9]}
18... Bxg6 {[%clk 0:02:02.9]} 19. Qe2 {[%clk 0:02:19]} 19... Nf5 {[%clk
0:01:59]} 20. Bf2 {[%clk 0:02:18]} 20... Qc7 {[%clk 0:01:46.8]} 21. a4 {[%clk
0:01:44]} 21... O-O-O {[%clk 0:01:35.2]} 22. a5 {[%clk 0:01:42.8]} 22... a6
{[%clk 0:01:32.8]} 23. Nc1 {[%clk 0:01:34.9]} 23... Rdg8 {[%clk 0:01:10.4]} 24.
b4 {[%clk 0:01:29.4]} 24... Nh6 {[%clk 0:00:59.1]} 25. Bg3 {[%clk 0:01:09]}
25... Be4 {[%clk 0:00:39.3]} 26. Kf2 {[%clk 0:00:48.2]} 26... Nf5 {[%clk
0:00:15.8]} 27. Rg1 {[%clk 0:00:44]} 27... Nxg3 {[%clk 0:00:12.1]} 28. Kxg3
{[%clk 0:00:44.9]} 28... f5 {[%clk 0:00:12.1]} 29. exf6 {[%clk 0:00:42.8]} 29...
Nxf6 {[%clk 0:00:12.2]} 30. Nd3 {[%clk 0:00:21.8]} 30... Bf5 {[%clk 0:00:06.4]}
31. Nf2 {[%clk 0:00:21.7]} 31... Nh5+ {[%clk 0:00:04.9]} 32. Kh2 {[%clk
0:00:21.7]} 32... Nxf4 {[%clk 0:00:04.7]} 33. Nxf4 {[%clk 0:00:16.7]} 33...
Qxf4+ {[%clk 0:00:05.6]} 34. Kg2 {[%clk 0:00:16.8]} 34... Bd6 {[%clk 0:00:05.4]}
35. Kf1 {[%clk 0:00:12.1]} 35... Rxh3 {[%clk 0:00:04.4]} 36. Rg2 {[%clk
0:00:01.9]} 36... Rh1+ {[%clk 0:00:03.8]} 37. Rg1 {[%clk 0:00:02.4]} 37... Rxg1+
{[%clk 0:00:04.1]} 38. Kxg1 {[%clk 0:00:03.3]} 38... Bxg4 {[%clk 0:00:04.4]} 0-1

[Event "*** Titled Tuesday Blitz"]
[Site "Chess.com"]
[Date "2020.11.24"]
[Round "3"]
[White "ajedrezhoy"]
[Black "ZEN-22"]
[Result "1/2-1/2"]
[WhiteElo "2224"]
[BlackElo "2434"]
[TimeControl "180+1"]
[EndTime "10:45:04 PST"]
[Termination "Game drawn - insufficient material"]

1. e4 {[%clk 0:03:00.9]} 1... e6 {[%clk 0:03:00.9]} 2. d4 {[%clk 0:02:59.9]}
2... c5 {[%clk 0:03:00.6]} 3. d5 {[%clk 0:02:58.4]} 3... d6 {[%clk 0:02:57.4]}
4. c4 {[%clk 0:02:57.3]} 4... b5 {[%clk 0:02:56.7]} 5. cxb5 {[%clk 0:02:56.3]}
5... a6 {[%clk 0:02:57.2]} 6. bxa6 {[%clk 0:02:53.2]} 6... Bxa6 {[%clk 0:02:55]}
7. Bxa6 {[%clk 0:02:52.6]} 7... Nxa6 {[%clk 0:02:55.9]} 8. Nc3 {[%clk 0:02:52]}
8... Nf6 {[%clk 0:02:55.2]} 9. Nf3 {[%clk 0:02:46.8]} 9... exd5 {[%clk
0:02:54.7]} 10. exd5 {[%clk 0:02:34.1]} 10... Be7 {[%clk 0:02:53.2]} 11. O-O
{[%clk 0:02:33.8]} 11... O-O {[%clk 0:02:53.7]} 12. Bf4 {[%clk 0:02:00.8]} 12...
Re8 {[%clk 0:02:51.5]} 13. Qd2 {[%clk 0:01:57.5]} 13... Qd7 {[%clk 0:02:50.2]}
14. h3 {[%clk 0:01:48.6]} 14... h6 {[%clk 0:02:47.3]} 15. Rfe1 {[%clk
0:01:45.1]} 15... Bf8 {[%clk 0:02:39.7]} 16. a3 {[%clk 0:01:43.6]} 16... Qf5
{[%clk 0:02:24.9]} 17. Bg3 {[%clk 0:01:41.5]} 17... Nc7 {[%clk 0:02:23.9]} 18.
Rxe8 {[%clk 0:01:39]} 18... Rxe8 {[%clk 0:02:23]} 19. Rd1 {[%clk 0:01:39]} 19...
Ne4 {[%clk 0:02:22.6]} 20. Nxe4 {[%clk 0:01:37.2]} 20... Rxe4 {[%clk 0:02:23.5]}
21. b3 {[%clk 0:01:26.1]} 21... g5 {[%clk 0:02:13.5]} 22. a4 {[%clk 0:01:25.1]}
22... Rb4 {[%clk 0:02:11.8]} 23. Qd3 {[%clk 0:01:23.1]} 23... Qxd3 {[%clk
0:02:09.3]} 24. Rxd3 {[%clk 0:01:22.8]} 24... c4 {[%clk 0:02:09.7]} 25. bxc4
{[%clk 0:01:21.8]} 25... Rxc4 {[%clk 0:02:09.6]} 26. Rd4 {[%clk 0:01:20.9]}
26... Rc1+ {[%clk 0:02:08.1]} 27. Kh2 {[%clk 0:01:20.2]} 27... Rc5 {[%clk
0:02:07.3]} 28. Nd2 {[%clk 0:01:17.3]} 28... Rxd5 {[%clk 0:01:59.5]} 29. Rxd5
{[%clk 0:01:15.6]} 29... Nxd5 {[%clk 0:02:00.4]} 30. Ne4 {[%clk 0:01:14.9]}
30... f5 {[%clk 0:01:52]} 31. Nxd6 {[%clk 0:01:09.3]} 31... f4 {[%clk
0:01:51.5]} 32. Bxf4 {[%clk 0:01:05]} 32... Nxf4 {[%clk 0:01:37.3]} 33. Nc4
{[%clk 0:01:03.2]} 33... Nd3 {[%clk 0:01:35.7]} 34. Kg3 {[%clk 0:00:58.7]} 34...
Bc5 {[%clk 0:01:27.9]} 35. f3 {[%clk 0:00:57.7]} 35... Kg7 {[%clk 0:01:26.1]}
36. Kh2 {[%clk 0:00:46.7]} 36... Kg6 {[%clk 0:01:24.7]} 37. g3 {[%clk
0:00:46.4]} 37... h5 {[%clk 0:01:22.4]} 38. Kg2 {[%clk 0:00:45.9]} 38... h4
{[%clk 0:01:18]} 39. gxh4 {[%clk 0:00:45.1]} 39... gxh4 {[%clk 0:01:17.7]} 40.
a5 {[%clk 0:00:42.7]} 40... Kf5 {[%clk 0:01:10.4]} 41. Nd2 {[%clk 0:00:39.5]}
41... Kf4 {[%clk 0:01:05]} 42. Ne4 {[%clk 0:00:38.3]} 42... Bd4 {[%clk
0:00:59.4]} 43. Nd6 {[%clk 0:00:33.6]} 43... Ne1+ {[%clk 0:00:56.9]} 44. Kh1
{[%clk 0:00:32.8]} 44... Nxf3 {[%clk 0:00:24.5]} 45. a6 {[%clk 0:00:31.7]} 45...
Ng5 {[%clk 0:00:17.9]} 46. Nb5 {[%clk 0:00:30.7]} 46... Bc5 {[%clk 0:00:17.7]}
47. a7 {[%clk 0:00:29.9]} 47... Bxa7 {[%clk 0:00:17.9]} 48. Nxa7 {[%clk
0:00:29.6]} 48... Kg3 {[%clk 0:00:18.8]} 49. Nc6 {[%clk 0:00:27.9]} 49... Nxh3
{[%clk 0:00:19.7]} 50. Nd4 {[%clk 0:00:26.2]} 50... Nf2+ {[%clk 0:00:20.6]} 51.
Kg1 {[%clk 0:00:24.5]} 51... Ne4 {[%clk 0:00:18.1]} 52. Nf5+ {[%clk 0:00:23.6]}
52... Kg4 {[%clk 0:00:17.8]} 53. Nxh4 {[%clk 0:00:23.6]} 1/2-1/2

[Event "*** Titled Tuesday Blitz"]
[Site "Chess.com"]
[Date "2020.11.24"]
[Round "3"]
[White "Guachiney"]
[Black "Malev212"]
[Result "0-1"]
[WhiteElo "2764"]
[BlackElo "2551"]
[TimeControl "180+1"]
[EndTime "10:45:06 PST"]
[Termination "Malev212 won on time"]

1. e4 {[%clk 0:02:59.8]} 1... c5 {[%clk 0:02:57.1]} 2. Nf3 {[%clk 0:02:59.6]}
2... Nc6 {[%clk 0:02:56.2]} 3. d4 {[%clk 0:02:58.1]} 3... cxd4 {[%clk
0:02:55.2]} 4. Nxd4 {[%clk 0:02:59]} 4... g6 {[%clk 0:02:55.1]} 5. c4 {[%clk
0:02:58.2]} 5... Nf6 {[%clk 0:02:53.7]} 6. Nc3 {[%clk 0:02:57.9]} 6... d6 {[%clk
0:02:53.7]} 7. f3 {[%clk 0:02:57.6]} 7... Nxd4 {[%clk 0:02:47.2]} 8. Qxd4 {[%clk
0:02:57.1]} 8... Bg7 {[%clk 0:02:47.9]} 9. Be3 {[%clk 0:02:57.3]} 9... O-O
{[%clk 0:02:47.2]} 10. Qd2 {[%clk 0:02:56.9]} 10... Bd7 {[%clk 0:02:43.6]} 11.
Bd3 {[%clk 0:02:48]} 11... a5 {[%clk 0:02:41.4]} 12. h4 {[%clk 0:02:47.5]} 12...
h5 {[%clk 0:02:34.7]} 13. O-O-O {[%clk 0:02:46.1]} 13... a4 {[%clk 0:02:34.4]}
14. g4 {[%clk 0:02:24.7]} 14... hxg4 {[%clk 0:02:21.8]} 15. h5 {[%clk
0:02:24.3]} 15... Nxh5 {[%clk 0:02:07.6]} 16. fxg4 {[%clk 0:02:24.1]} 16... Bxg4
{[%clk 0:01:45.7]} 17. Rdg1 {[%clk 0:02:22.7]} 17... Qd7 {[%clk 0:01:33.1]} 18.
Bh6 {[%clk 0:02:08.9]} 18... Be5 {[%clk 0:01:25.6]} 19. Nd5 {[%clk 0:01:55.2]}
19... Bf3 {[%clk 0:01:23.8]} 20. Rh4 {[%clk 0:01:44]} 20... a3 {[%clk 0:01:12]}
21. b3 {[%clk 0:01:41.6]} 21... e6 {[%clk 0:01:01.1]} 22. Nb6 {[%clk 0:01:11.6]}
22... Qe7 {[%clk 0:00:58.3]} 23. Bg5 {[%clk 0:01:07.4]} 23... Bf6 {[%clk
0:00:49.9]} 24. Nxa8 {[%clk 0:00:29.6]} 24... Rxa8 {[%clk 0:00:48]} 25. Kb1
{[%clk 0:00:21.9]} 25... Rc8 {[%clk 0:00:43.7]} 26. Qe3 {[%clk 0:00:19.7]} 26...
Rc5 {[%clk 0:00:41.5]} 27. Bxf6 {[%clk 0:00:17.4]} 27... Qxf6 {[%clk 0:00:41.2]}
28. Rh2 {[%clk 0:00:18.3]} 28... Qf4 {[%clk 0:00:31.1]} 29. Qxf4 {[%clk
0:00:16.2]} 29... Nxf4 {[%clk 0:00:30]} 30. Bc2 {[%clk 0:00:17.1]} 30... e5
{[%clk 0:00:26.6]} 31. Rd2 {[%clk 0:00:15.9]} 31... Rc6 {[%clk 0:00:25.2]} 32.
Rf1 {[%clk 0:00:14.2]} 32... Bg4 {[%clk 0:00:24.6]} 33. Rg1 {[%clk 0:00:09.7]}
33... Bh5 {[%clk 0:00:23.4]} 34. Rg5 {[%clk 0:00:07.6]} 34... Kf8 {[%clk
0:00:21.9]} 35. c5 {[%clk 0:00:07.3]} 35... Rxc5 {[%clk 0:00:20.2]} 36. Rxd6
{[%clk 0:00:06.8]} 36... Ke7 {[%clk 0:00:20.7]} 37. Rb6 {[%clk 0:00:06.8]} 37...
Rc7 {[%clk 0:00:18.8]} 38. Rxe5+ {[%clk 0:00:06.4]} 38... Kf8 {[%clk 0:00:17.4]}
39. Reb5 {[%clk 0:00:07.3]} 39... Ne2 {[%clk 0:00:16.3]} 40. Rxb7 {[%clk
0:00:07.6]} 40... Nc3+ {[%clk 0:00:16]} 41. Ka1 {[%clk 0:00:07.9]} 41... Nxb5
{[%clk 0:00:15.7]} 0-1

[Event "*** Titled Tuesday Blitz"]
[Site "Chess.com"]
[Date "2020.11.24"]
[Round "3"]
[White "dretch"]
[Black "cstevens1"]
[Result "0-1"]
[WhiteElo "2789"]
[BlackElo "2575"]
[TimeControl "180+1"]
[EndTime "10:45:06 PST"]
[Termination "cstevens1 won on time"]

1. d4 {[%clk 0:03:00.9]} 1... Nf6 {[%clk 0:02:59.7]} 2. c4 {[%clk 0:03:01.2]}
2... Nc6 {[%clk 0:02:59.6]} 3. Nf3 {[%clk 0:02:59.6]} 3... e6 {[%clk 0:02:59.9]}
4. Nc3 {[%clk 0:02:50]} 4... Bb4 {[%clk 0:03:00.3]} 5. Qc2 {[%clk 0:02:50.1]}
5... d6 {[%clk 0:03:00.6]} 6. Bd2 {[%clk 0:02:49.1]} 6... e5 {[%clk 0:03:00.8]}
7. d5 {[%clk 0:02:44.9]} 7... Bxc3 {[%clk 0:03:00.8]} 8. Bxc3 {[%clk 0:02:45.3]}
8... Nb8 {[%clk 0:03:01.5]} 9. e4 {[%clk 0:02:42.7]} 9... O-O {[%clk 0:03:01.8]}
10. Be2 {[%clk 0:02:42]} 10... Ne8 {[%clk 0:02:59.1]} 11. h4 {[%clk 0:02:11.2]}
11... h6 {[%clk 0:02:52.4]} 12. Bd3 {[%clk 0:02:02.6]} 12... a5 {[%clk 0:02:45]}
13. Rg1 {[%clk 0:01:35.1]} 13... Na6 {[%clk 0:02:43.7]} 14. g4 {[%clk
0:01:34.1]} 14... Nb4 {[%clk 0:02:41.6]} 15. Bxb4 {[%clk 0:01:29.7]} 15... axb4
{[%clk 0:02:42.5]} 16. Qb3 {[%clk 0:01:26.9]} 16... c5 {[%clk 0:02:42.8]} 17.
dxc6 {[%clk 0:01:26.4]} 17... bxc6 {[%clk 0:02:42.8]} 18. c5 {[%clk 0:01:16.9]}
18... Be6 {[%clk 0:02:29.4]} 19. Qxb4 {[%clk 0:01:13.1]} 19... dxc5 {[%clk
0:02:28.7]} 20. Qc3 {[%clk 0:01:12.6]} 20... f6 {[%clk 0:01:52.7]} 21. O-O-O
{[%clk 0:00:59.8]} 21... Qa5 {[%clk 0:01:35.2]} 22. Qxa5 {[%clk 0:00:35.1]}
22... Rxa5 {[%clk 0:01:36.1]} 23. a3 {[%clk 0:00:23.6]} 23... Nd6 {[%clk
0:01:16.4]} 24. Bc2 {[%clk 0:00:19.5]} 24... Nb5 {[%clk 0:01:10.7]} 25. g5
{[%clk 0:00:16.2]} 25... fxg5 {[%clk 0:01:09.9]} 26. Nxe5 {[%clk 0:00:16.5]}
26... Nd4 {[%clk 0:01:01.4]} 27. hxg5 {[%clk 0:00:16.1]} 27... Rxf2 {[%clk
0:01:01.6]} 28. Rd2 {[%clk 0:00:14.9]} 28... Rxd2 {[%clk 0:00:55]} 29. Kxd2
{[%clk 0:00:15.8]} 29... c4 {[%clk 0:00:53.5]} 30. Kc3 {[%clk 0:00:13.6]} 30...
Ne2+ {[%clk 0:00:50.1]} 31. Kb4 {[%clk 0:00:11.2]} 31... Rb5+ {[%clk 0:00:41.1]}
32. Ka4 {[%clk 0:00:11.4]} 32... Nxg1 {[%clk 0:00:41]} 33. gxh6 {[%clk
0:00:11.6]} 33... gxh6 {[%clk 0:00:38.1]} 34. Nxc6 {[%clk 0:00:09.2]} 34... Rxb2
{[%clk 0:00:37.4]} 35. Nd4 {[%clk 0:00:09.5]} 35... Bd7+ {[%clk 0:00:36.1]} 36.
Ka5 {[%clk 0:00:10]} 36... Ne2 {[%clk 0:00:21.5]} 37. Nxe2 {[%clk 0:00:05.8]}
37... Rxc2 {[%clk 0:00:21.8]} 38. Nf4 {[%clk 0:00:05.1]} 38... c3 {[%clk
0:00:20]} 39. Kb4 {[%clk 0:00:02.7]} 39... Rf2 {[%clk 0:00:16.5]} 40. Nd3 {[%clk
0:00:01.4]} 40... c2 {[%clk 0:00:16.5]} 0-1

[Event "*** Titled Tuesday Blitz"]
[Site "Chess.com"]
[Date "2020.11.24"]
[Round "3"]
[White "LiderChessAcademy"]
[Black "sjam6687"]
[Result "0-1"]
[WhiteElo "2547"]
[BlackElo "2794"]
[TimeControl "180+1"]
[EndTime "10:45:07 PST"]
[Termination "sjam6687 won on time"]

1. d4 {[%clk 0:03:00.9]} 1... Nf6 {[%clk 0:02:57.6]} 2. c4 {[%clk 0:03:01]} 2...
e6 {[%clk 0:02:56]} 3. Nf3 {[%clk 0:02:57.9]} 3... d5 {[%clk 0:02:54.6]} 4. g3
{[%clk 0:02:54.5]} 4... dxc4 {[%clk 0:02:51.7]} 5. Bg2 {[%clk 0:02:52.9]} 5...
Bb4+ {[%clk 0:02:52]} 6. Bd2 {[%clk 0:02:48.8]} 6... a5 {[%clk 0:02:52]} 7. Qc2
{[%clk 0:02:46.7]} 7... Nc6 {[%clk 0:02:44.8]} 8. Qxc4 {[%clk 0:02:44]} 8... Qd5
{[%clk 0:02:42.3]} 9. Qxd5 {[%clk 0:02:16.4]} 9... exd5 {[%clk 0:02:40.4]} 10.
a3 {[%clk 0:02:10.3]} 10... Bxd2+ {[%clk 0:02:35.4]} 11. Nbxd2 {[%clk
0:02:11.2]} 11... O-O {[%clk 0:02:35.2]} 12. Rc1 {[%clk 0:02:07.4]} 12... Bf5
{[%clk 0:02:27.9]} 13. O-O {[%clk 0:02:01.1]} 13... a4 {[%clk 0:02:19.6]} 14. e3
{[%clk 0:01:56.3]} 14... Ra6 {[%clk 0:02:16.4]} 15. Nh4 {[%clk 0:01:34.3]} 15...
Be6 {[%clk 0:02:13.7]} 16. Rc2 {[%clk 0:01:28.9]} 16... Rb6 {[%clk 0:02:09.5]}
17. Ndf3 {[%clk 0:01:12.1]} 17... Na5 {[%clk 0:02:01.9]} 18. Rxc7 {[%clk
0:01:02.3]} 18... Rxb2 {[%clk 0:02:00.1]} 19. Ng5 {[%clk 0:00:59.3]} 19... Nc4
{[%clk 0:01:46]} 20. Nxe6 {[%clk 0:00:55.6]} 20... fxe6 {[%clk 0:01:46.9]} 21.
Bh3 {[%clk 0:00:55.3]} 21... Re8 {[%clk 0:01:45.2]} 22. Nf3 {[%clk 0:00:53.9]}
22... Nxa3 {[%clk 0:01:41.5]} 23. Ng5 {[%clk 0:00:52.3]} 23... Rb6 {[%clk
0:01:41.9]} 24. Ra1 {[%clk 0:00:50]} 24... Nb5 {[%clk 0:01:41.8]} 25. Rc5 {[%clk
0:00:43.9]} 25... h6 {[%clk 0:01:26.5]} 26. Nxe6 {[%clk 0:00:42.9]} 26... Ra8
{[%clk 0:01:25.9]} 27. Rcc1 {[%clk 0:00:20.5]} 27... Nd6 {[%clk 0:01:19.2]} 28.
Nc5 {[%clk 0:00:18.9]} 28... a3 {[%clk 0:01:13.7]} 29. Kg2 {[%clk 0:00:18.2]}
29... Nc4 {[%clk 0:01:07.1]} 30. Be6+ {[%clk 0:00:17]} 30... Kf8 {[%clk
0:01:05.5]} 31. Bxd5 {[%clk 0:00:16.7]} 31... Nxe3+ {[%clk 0:01:02.7]} 32. fxe3
{[%clk 0:00:15.4]} 32... Rb2+ {[%clk 0:00:59.8]} 33. Kh3 {[%clk 0:00:14.6]}
33... Nxd5 {[%clk 0:01:00.4]} 34. Ne6+ {[%clk 0:00:10.6]} 34... Kf7 {[%clk
0:00:56.6]} 35. Nc7 {[%clk 0:00:10.8]} 35... Nxc7 {[%clk 0:00:54.8]} 36. Rxc7+
{[%clk 0:00:11.7]} 36... Kg6 {[%clk 0:00:55.7]} 37. Rc3 {[%clk 0:00:08.1]} 37...
a2 {[%clk 0:00:54.2]} 38. Rcc1 {[%clk 0:00:06.4]} 38... b5 {[%clk 0:00:52.3]}
39. d5 {[%clk 0:00:06.7]} 39... Kf6 {[%clk 0:00:50.1]} 40. e4 {[%clk 0:00:06.5]}
40... Ke5 {[%clk 0:00:45.5]} 41. Rd1 {[%clk 0:00:06.9]} 41... Kd6 {[%clk
0:00:41.3]} 42. e5+ {[%clk 0:00:06.1]} 42... Kxe5 {[%clk 0:00:41.5]} 43. d6
{[%clk 0:00:07]} 43... b4 {[%clk 0:00:40.9]} 44. d7 {[%clk 0:00:07.4]} 44... Rd8
{[%clk 0:00:40.6]} 45. Re1+ {[%clk 0:00:07.2]} 45... Kf6 {[%clk 0:00:38.6]} 46.
Rad1 {[%clk 0:00:04]} 46... b3 {[%clk 0:00:36.2]} 0-1

[Event "*** Titled Tuesday Blitz"]
[Site "Chess.com"]
[Date "2020.11.24"]
[Round "3"]
[White "German_Bazeev"]
[Black "Gerodot71"]
[Result "1-0"]
[WhiteElo "2678"]
[BlackElo "2469"]
[TimeControl "180+1"]
[EndTime "10:45:08 PST"]
[Termination "German_Bazeev won by resignation"]

1. d4 {[%clk 0:03:00.9]} 1... Nf6 {[%clk 0:02:59.8]} 2. Nf3 {[%clk 0:03:00.9]}
2... d5 {[%clk 0:02:58.8]} 3. c4 {[%clk 0:03:00.9]} 3... e6 {[%clk 0:02:59]} 4.
g3 {[%clk 0:03:00.8]} 4... Be7 {[%clk 0:02:59]} 5. Bg2 {[%clk 0:03:00.8]} 5...
O-O {[%clk 0:02:59.5]} 6. O-O {[%clk 0:03:01.7]} 6... dxc4 {[%clk 0:03:00]} 7.
Qc2 {[%clk 0:03:01.9]} 7... a6 {[%clk 0:02:59.8]} 8. a4 {[%clk 0:03:01.5]} 8...
Nc6 {[%clk 0:02:58.9]} 9. Qxc4 {[%clk 0:03:01.3]} 9... Qd5 {[%clk 0:02:58.7]}
10. Nbd2 {[%clk 0:03:01.1]} 10... Rd8 {[%clk 0:02:55.2]} 11. e3 {[%clk
0:03:00.9]} 11... Qh5 {[%clk 0:02:54.3]} 12. b3 {[%clk 0:02:12.1]} 12... e5
{[%clk 0:02:51.2]} 13. dxe5 {[%clk 0:02:09]} 13... Ng4 {[%clk 0:02:50.8]} 14. h4
{[%clk 0:01:48.5]} 14... Be6 {[%clk 0:02:34]} 15. Qf4 {[%clk 0:01:42.2]} 15...
Ngxe5 {[%clk 0:02:24.8]} 16. Nxe5 {[%clk 0:01:34.1]} 16... Nxe5 {[%clk
0:02:25.7]} 17. Nf3 {[%clk 0:01:21.9]} 17... Bf6 {[%clk 0:02:11.1]} 18. Nd4
{[%clk 0:01:05]} 18... Bd5 {[%clk 0:01:54.7]} 19. Bxd5 {[%clk 0:01:00.2]} 19...
Rxd5 {[%clk 0:01:55.6]} 20. Qe4 {[%clk 0:00:58.7]} 20... Rad8 {[%clk 0:01:49.8]}
21. b4 {[%clk 0:00:34.3]} 21... Nf3+ {[%clk 0:01:32]} 22. Kg2 {[%clk 0:00:22.3]}
22... Nxd4 {[%clk 0:01:30.8]} 23. exd4 {[%clk 0:00:23.2]} 23... Rxd4 {[%clk
0:01:31.4]} 24. Qxb7 {[%clk 0:00:20.5]} 24... Rd1 {[%clk 0:01:26.8]} 25. Rxd1
{[%clk 0:00:11.3]} 25... Rxd1 {[%clk 0:01:23.9]} 26. Bb2 {[%clk 0:00:09.6]}
26... Rd6 {[%clk 0:01:01.1]} 27. Bxf6 {[%clk 0:00:08.9]} 27... gxf6 {[%clk
0:01:02]} 28. Qf3 {[%clk 0:00:08.3]} 28... Qxf3+ {[%clk 0:00:58.6]} 29. Kxf3
{[%clk 0:00:09.2]} 29... Rd4 {[%clk 0:00:59.3]} 30. Rb1 {[%clk 0:00:08.7]} 30...
Rd3+ {[%clk 0:00:56.4]} 31. Ke4 {[%clk 0:00:08.9]} 31... Ra3 {[%clk 0:00:57.1]}
32. a5 {[%clk 0:00:09.2]} 32... Rc3 {[%clk 0:00:56.2]} 33. Kd4 {[%clk
0:00:09.3]} 33... Rc2 {[%clk 0:00:56.6]} 34. Ra1 {[%clk 0:00:08.3]} 34... c6
{[%clk 0:00:51.8]} 35. Ra3 {[%clk 0:00:08.1]} 35... Rxf2 {[%clk 0:00:48.8]} 36.
Rc3 {[%clk 0:00:07.5]} 36... Rb2 {[%clk 0:00:45.9]} 37. Kc5 {[%clk 0:00:07.5]}
37... f5 {[%clk 0:00:38.1]} 38. Rc4 {[%clk 0:00:07.7]} 38... Rb3 {[%clk
0:00:37.7]} 39. Kxc6 {[%clk 0:00:07.9]} 39... Rxg3 {[%clk 0:00:38.3]} 40. Kb6
{[%clk 0:00:07.9]} 40... Rg4 {[%clk 0:00:37.8]} 41. Kc5 {[%clk 0:00:07.4]} 41...
Kg7 {[%clk 0:00:29.5]} 42. Rxg4+ {[%clk 0:00:05.6]} 42... fxg4 {[%clk
0:00:30.4]} 43. Kd4 {[%clk 0:00:06.5]} 43... Kf6 {[%clk 0:00:27.5]} 44. b5
{[%clk 0:00:06.4]} 44... axb5 {[%clk 0:00:28.4]} 45. a6 {[%clk 0:00:07]} 45...
g3 {[%clk 0:00:29.3]} 46. Ke3 {[%clk 0:00:07.1]} 46... b4 {[%clk 0:00:29.8]} 47.
a7 {[%clk 0:00:07.3]} 47... b3 {[%clk 0:00:30.4]} 48. a8=Q {[%clk 0:00:07.3]}
48... g2 {[%clk 0:00:31.3]} 49. Qxg2 {[%clk 0:00:07.1]} 49... Kf5 {[%clk
0:00:30.8]} 50. Qb2 {[%clk 0:00:08]} 50... Kg4 {[%clk 0:00:31.7]} 1-0